bitfinex-derivatives/quotes_BTCF0:USTF0_20250716
["timestamp","ask_amount","ask_price","bid_price","bid_amount"]
[1752702239332,1.16847133,119510.0,119500.0,0.09406]
[1752702240030,0.001,119510.0,119500.0,0.27808449]
[1752702240228,0.52000513,119530.0,119520.0,0.2543254]
[1752702240428,1.16692513,119530.0,119520.0,0.2543254]
[1752702241024,1.16692513,119530.0,119520.0,0.08706]
[1752702241428,1.16692513,119530.0,119520.0,0.2543254]
[1752702241628,1.16692513,119530.0,119520.0,0.08706]
[1752702241825,1.17284513,119530.0,119520.0,0.08806]
[1752702242931,1.23386384,119530.0,119520.0,0.08806]
[1752702243130,1.35880225,119530.0,119520.0,0.001]
[1752702243435,1.35880225,119530.0,119520.0,0.05007]
[1752702244846,1.35880225,119530.0,119520.0,0.05501]
[1752702245237,0.41977244,119530.0,119520.0,0.2562857]
[1752702245438,0.41977244,119530.0,119520.0,0.6736137]
[1752702245439,0.006,119530.0,119520.0,0.6736137]
[1752702245634,0.65244,119530.0,119520.0,0.6736137]
[1752702246243,0.65244,119530.0,119520.0,0.2562857]
[1752702246447,0.8196917,119530.0,119520.0,0.4236137]
[1752702248336,0.8196917,119530.0,119520.0,0.4980645]
[1752702248648,1.23346414,119530.0,119520.0,0.2562857]
[1752702250443,1.23346414,119530.0,119520.0,0.3307365]
[1752702250645,1.23346414,119530.0,119520.0,0.2562857]
[1752702253250,1.23351414,119530.0,119520.0,0.2562857]
[1752702254054,0.00605,119530.0,119520.0,0.2562857]
[1752702254249,0.65165,119530.0,119520.0,0.2562857]
[1752702254447,0.8189016,119530.0,119520.0,0.2562857]
[1752702254842,0.8129016,119530.0,119520.0,0.2552857]
[1752702255048,0.8179016,119530.0,119520.0,0.2562857]
[1752702255348,0.8179017,119530.0,119520.0,0.4236137]
[1752702255550,0.8179017,119530.0,119520.0,0.2562857]
[1752702257046,0.8174617,119530.0,119520.0,0.2562857]
[1752702258351,0.31937753,119550.0,119540.0,0.2012478]
[1752702258552,1.26784964,119550.0,119540.0,0.2552578]
[1752702258847,1.26784964,119550.0,119540.0,0.2212478]
[1752702259051,1.26776964,119550.0,119540.0,0.2212478]
[1752702259349,0.1672378,119540.0,119530.0,0.0002]
[1752702259545,0.1672518,119530.0,119520.0,0.0746508]
[1752702259746,1.50590424,119530.0,119520.0,0.0744508]
[1752702260348,1.50590424,119530.0,119520.0,0.2212758]
[1752702260651,1.26582424,119530.0,119520.0,0.2212758]
[1752702260958,1.57578424,119530.0,119520.0,0.2212758]
[1752702261150,0.93302424,119530.0,119520.0,0.2562858]
[1752702261454,0.8139718,119530.0,119520.0,0.2562858]
[1752702261654,0.8159718,119530.0,119520.0,0.2562858]
[1752702261858,0.8160218,119530.0,119520.0,0.2562858]
[1752702262244,0.1713018,119530.0,119520.0,0.2562858]
[1752702262447,0.64865,119530.0,119520.0,0.2562858]
[1752702263259,0.64869,119530.0,119520.0,0.2562858]
[1752702263456,0.8159418,119530.0,119520.0,0.2728557]
[1752702263659,1.22971424,119530.0,119520.0,0.23467739]
[1752702263956,1.22971424,119530.0,119520.0,0.001]
[1752702265859,0.8159418,119530.0,119520.0,0.001]
[1752702266158,1.22971424,119530.0,119520.0,0.001]
[1752702267063,2.01704224,119530.0,119520.0,0.001]
[1752702267249,2.1420982,119530.0,119520.0,0.001]
[1752702268161,1.72832576,119530.0,119520.0,0.001]
[1752702268360,2.1420982,119530.0,119520.0,0.001]
[1752702268556,2.1420982,119530.0,119520.0,0.0611208]
[1752702269157,1.8920982,119530.0,119520.0,0.0611208]
[1752702269456,1.8920982,119530.0,119520.0,0.001]
[1752702269848,3.0486582,119530.0,119520.0,0.001]
[1752702270055,2.6413302,119530.0,119520.0,0.13239749]
[1752702270250,2.51627424,119530.0,119520.0,0.05732]
[1752702270462,2.51627424,119530.0,119520.0,0.33136309]
[1752702270664,2.51627424,119530.0,119520.0,0.2562856]
[1752702270963,2.38627404,119530.0,119520.0,0.07266]
[1752702271259,2.38627404,119530.0,119520.0,0.1772499]
[1752702271660,2.38627404,119530.0,119520.0,0.1936099]
[1752702271855,2.38627404,119530.0,119520.0,0.3608755]
[1752702272766,2.38603404,119530.0,119520.0,0.3608755]
[1752702272958,2.38603404,119530.0,119520.0,0.2562856]
[1752702274266,2.38603404,119530.0,119520.0,0.08902]
[1752702275869,1.9722616,119530.0,119520.0,0.08902]
[1752702276066,2.38603404,119530.0,119520.0,0.08902]
[1752702276266,2.38603404,119530.0,119520.0,0.07266]
[1752702277578,2.38603404,119530.0,119520.0,0.05732]
[1752702278965,2.38603404,119530.0,119520.0,0.001]
[1752702279167,0.1672656,119520.0,119510.0,0.0002]
[1752702279368,0.1672656,119520.0,119500.0,0.28258792]
[1752702279369,0.1672796,119510.0,119500.0,0.28278792]
[1752702279571,1.22401204,119510.0,119500.0,0.28258792]
[1752702280873,1.22401204,119510.0,119500.0,0.24076502]
[1752702281869,1.22401204,119510.0,119500.0,0.24176502]
[1752702281870,1.22501204,119510.0,119500.0,0.24176502]
[1752702282678,1.22501204,119510.0,119500.0,0.24421502]
[1752702283674,1.22501204,119510.0,119500.0,0.24176502]
[1752702283873,1.22501204,119510.0,119500.0,0.34702409]
[1752702284175,1.22501204,119510.0,119500.0,0.17974179]
[1752702284368,1.22501204,119510.0,119500.0,0.05772]
[1752702284963,1.22501204,119510.0,119500.0,0.05289]
[1752702286477,1.22501204,119510.0,119500.0,0.006]
[1752702287373,1.22501204,119510.0,119500.0,0.06614542]
[1752702287674,1.22501204,119510.0,119500.0,0.11303542]
[1752702288380,1.22501204,119510.0,119500.0,0.11303675]
[1752702288979,1.22501204,119510.0,119500.0,0.06614675]
[1752702289872,1.22501204,119510.0,119500.0,0.11303675]
[1752702290069,1.49318448,119510.0,119500.0,0.07613231]
[1752702290272,1.49318448,119510.0,119500.0,0.00095001]
[1752702290273,1.55397204,119510.0,119500.0,0.00095001]
[1752702290474,1.55397204,119510.0,119500.0,0.06109436]
[1752702292583,2.13510448,119510.0,119500.0,0.06109436]
[1752702294076,2.38510448,119510.0,119500.0,0.06109436]
[1752702294276,2.13510448,119510.0,119500.0,0.00095001]
[1752702296383,2.25980452,119510.0,119500.0,0.00095001]
[1752702296577,2.25985452,119510.0,119500.0,0.00095001]
[1752702297575,0.1672935,119500.0,119490.0,0.06034435]
[1752702297775,1.30483838,119500.0,119490.0,0.06014435]
[1752702297972,1.43036648,119500.0,119490.0,0.10703435]
[1752702298176,1.54206594,119500.0,119490.0,0.11186435]
[1752702298373,0.90106594,119500.0,119490.0,0.11186435]
[1752702298579,1.57202594,119500.0,119490.0,0.05172]
[1752702298778,1.57946793,119500.0,119490.0,0.05172]
[1752702298979,1.57946793,119500.0,119490.0,0.06935]
[1752702299183,1.27942793,119500.0,119490.0,0.08565]
[1752702299382,1.55942793,119500.0,119490.0,0.14570481]
[1752702299580,1.14565549,119500.0,119490.0,0.16288003]
[1752702299779,1.27942793,119500.0,119490.0,0.16288003]
[1752702299978,1.27942793,119500.0,119490.0,0.27013241]
[1752702300182,1.22182594,119500.0,119490.0,0.27013241]
[1752702300384,1.22482594,119500.0,119490.0,0.27113241]
[1752702300580,1.22482594,119500.0,119490.0,0.33118753]
[1752702300785,0.003,119500.0,119490.0,0.33118753]
[1752702301084,5e-05,119510.0,119500.0,0.2012235]
[1752702301286,0.64073,119510.0,119500.0,0.5779951]
[1752702301485,0.64073,119510.0,119500.0,0.7453551]
[1752702301687,0.64073,119510.0,119500.0,0.75278907]
[1752702301887,0.64073,119510.0,119500.0,0.67773747]
[1752702302390,0.8080095,119510.0,119500.0,0.67773747]
[1752702303076,0.8080095,119510.0,119500.0,0.75281522]
[1752702303684,0.8079295,119510.0,119500.0,0.67773747]
[1752702304187,1.22170194,119510.0,119500.0,0.32816535]
[1752702304387,0.8127195,119510.0,119500.0,0.38824333]
[1752702304591,1.22649194,119510.0,119500.0,0.31316148]
[1752702307184,1.22649194,119510.0,119500.0,0.2530835]
[1752702307387,1.22649194,119510.0,119500.0,0.32816535]
[1752702307884,1.22749194,119510.0,119500.0,0.32916535]
[1752702308985,1.22749194,119510.0,119500.0,0.16187185]
[1752702309191,1.22270194,119510.0,119500.0,0.32916545]
[1752702309385,1.22270194,119510.0,119500.0,0.2540836]
[1752702309585,0.8089295,119510.0,119500.0,0.4214436]
[1752702309786,0.64077,119510.0,119500.0,0.2540836]
[1752702310083,0.8080496,119510.0,119500.0,0.32916545]
[1752702310284,0.64077,119510.0,119500.0,0.32916545]
[1752702310685,0.8080495,119510.0,119500.0,0.32916545]
[1752702310891,0.64077,119510.0,119500.0,0.32916545]
[1752702311193,0.8080495,119510.0,119500.0,0.32916545]
[1752702311792,0.8080495,119510.0,119500.0,0.49652545]
[1752702313290,0.64077,119510.0,119500.0,0.49652545]
[1752702314493,0.64077,119510.0,119500.0,1.16029789]
[1752702314680,0.61577,119510.0,119500.0,1.18029789]
[1752702314886,5e-05,119530.0,119520.0,0.1672655]
[1752702315086,0.8064215,119530.0,119520.0,0.27109799]
[1752702315286,0.8064215,119530.0,119520.0,0.51351289]
[1752702315484,0.8064215,119530.0,119520.0,0.43842599]
[1752702315887,0.8064215,119530.0,119520.0,0.51347186]
[1752702316693,0.8087715,119530.0,119520.0,0.51347186]
[1752702316893,0.8086515,119530.0,119520.0,0.51347186]
[1752702318089,0.8116515,119530.0,119520.0,0.51447186]
[1752702318291,0.8116515,119530.0,119520.0,0.34714386]
[1752702318494,0.8116515,119530.0,119520.0,0.51447186]
[1752702320202,0.8093015,119530.0,119520.0,0.51447186]
[1752702320693,0.8428615,119530.0,119520.0,0.51447186]
[1752702321800,0.8116515,119530.0,119520.0,0.43942599]
[1752702322192,0.8093015,119530.0,119520.0,0.43942599]
[1752702322695,0.8093015,119530.0,119520.0,0.49939624]
[1752702322696,0.00305,119530.0,119520.0,0.49939624]
[1752702322894,0.64141,119530.0,119520.0,0.43942599]
[1752702323394,0.64141,119530.0,119520.0,0.49939334]
[1752702323395,0.64125,119530.0,119520.0,0.49939334]
[1752702323997,0.8085015,119530.0,119520.0,0.49939334]
[1752702324198,0.00305,119530.0,119520.0,0.49939334]
[1752702324401,0.64113,119530.0,119520.0,0.49939334]
[1752702325105,0.64113,119530.0,119520.0,0.50669291]
[1752702325506,0.64113,119530.0,119520.0,0.49939334]
[1752702326404,0.8083818,119530.0,119520.0,0.49939334]
[1752702327504,0.00305,119530.0,119520.0,0.49939334]
[1752702327706,0.64097,119530.0,119520.0,0.85319843]
[1752702328208,0.64097,119530.0,119520.0,0.43942599]
[1752702329308,0.00305,119530.0,119520.0,0.43942599]
[1752702330610,0.00305,119530.0,119520.0,0.27209799]
[1752702330810,0.00305,119530.0,119520.0,0.54468506]
[1752702331011,0.00305,119530.0,119520.0,0.8975473]
[1752702331308,0.00305,119530.0,119520.0,0.79228823]
[1752702331498,0.00305,119530.0,119520.0,0.43942599]
[1752702331702,0.00305,119530.0,119520.0,0.34712517]
[1752702332103,0.58085414,119530.0,119520.0,0.34712517]
[1752702332305,0.60831414,119530.0,119520.0,0.34712517]
[1752702332510,0.60378414,119530.0,119520.0,0.34712517]
[1752702332702,0.2509219,119530.0,119520.0,0.34712517]
[1752702332909,0.60378414,119530.0,119520.0,0.34712517]
[1752702333106,0.60844414,119530.0,119520.0,0.34712517]
[1752702333814,0.60844414,119530.0,119520.0,0.25658799]
[1752702334006,0.60844414,119530.0,119520.0,0.24029799]
[1752702334510,0.60844414,119530.0,119520.0,0.31532517]
[1752702335009,0.60844414,119530.0,119520.0,0.24029799]
[1752702336608,0.60844414,119530.0,119520.0,0.31532517]
[1752702337008,0.60844414,119530.0,119520.0,0.24029799]
[1752702337700,0.2555819,119530.0,119520.0,0.33160517]
[1752702337900,0.60844414,119530.0,119520.0,0.33160517]
[1752702338111,0.60844414,119530.0,119520.0,0.34799517]
[1752702338311,0.38947224,119530.0,119520.0,0.34799517]
[1752702338510,0.55672414,119530.0,119520.0,0.27296799]
[1752702338911,0.38947224,119530.0,119520.0,0.37822706]
[1752702339112,0.41230224,119530.0,119520.0,0.37822706]
[1752702339613,0.60230414,119530.0,119520.0,0.37822706]
[1752702340209,0.60696414,119530.0,119520.0,0.37822706]
[1752702340810,0.60396414,119530.0,119520.0,0.37822706]
[1752702341010,0.60596414,119530.0,119520.0,0.45340877]
[1752702341315,0.60596414,119530.0,119520.0,0.3481497]
[1752702343017,0.1693019,119530.0,119520.0,0.3481497]
[1752702343217,0.55623414,119530.0,119520.0,0.3481497]
[1752702343519,0.60647414,119530.0,119520.0,0.3481497]
[1752702345715,0.60647414,119530.0,119520.0,0.27296799]
[1752702345918,0.60647414,119530.0,119520.0,0.34817184]
[1752702351313,0.60647414,119530.0,119520.0,0.27296799]
[1752702357020,0.60647414,119530.0,119520.0,0.10570249]
[1752702357419,0.60647414,119530.0,119520.0,0.18089576]
[1752702358015,0.60647414,119530.0,119520.0,0.34816166]
[1752702359620,0.60647414,119530.0,119520.0,0.18089576]
[1752702360617,0.60647414,119530.0,119520.0,0.34816166]
[1752702360922,0.60647414,119530.0,119520.0,0.34821413]
[1752702361120,0.60647414,119530.0,119520.0,0.27296839]
[1752702361918,0.60647414,119530.0,119520.0,0.10570249]
[1752702362520,0.60647414,119530.0,119520.0,0.27296829]
[1752702362723,0.60647414,119530.0,119520.0,0.10570249]
[1752702363622,0.60647414,119530.0,119520.0,0.18101052]
[1752702364120,0.60647414,119530.0,119520.0,0.10570249]
[1752702364421,0.60647414,119530.0,119520.0,0.27296829]
[1752702365427,0.60647414,119530.0,119520.0,0.10570249]
[1752702365828,0.60647414,119530.0,119520.0,0.27296839]
[1752702366227,0.60647414,119530.0,119520.0,0.37822746]
[1752702366924,0.60647414,119530.0,119520.0,0.21096156]
[1752702367429,0.2536119,119530.0,119520.0,0.10570249]
[1752702367632,0.60647414,119530.0,119520.0,0.10570249]
[1752702370029,0.60647414,119530.0,119520.0,0.27296839]
[1752702370626,0.60647414,119530.0,119520.0,0.21096156]
[1752702370930,0.60647414,119530.0,119520.0,0.10570249]
[1752702371432,0.2536119,119530.0,119520.0,0.10570249]
[1752702371631,0.60647414,119530.0,119520.0,0.27296839]
[1752702372433,0.60647414,119530.0,119520.0,0.10570249]
[1752702373130,0.60647414,119530.0,119520.0,0.27296839]
[1752702373327,0.60647414,119530.0,119520.0,0.37822746]
[1752702373527,0.2536119,119530.0,119520.0,0.37822746]
[1752702373723,0.60647414,119530.0,119520.0,0.37822746]
[1752702374333,0.60647414,119530.0,119520.0,0.27296839]
[1752702375637,0.60647414,119530.0,119520.0,0.37822746]
[1752702375831,0.60647414,119530.0,119520.0,0.21096156]
[1752702376030,0.60647414,119530.0,119520.0,0.28626906]
[1752702376230,0.60647414,119530.0,119520.0,0.18100999]
[1752702377337,0.60647414,119530.0,119520.0,0.10570249]
[1752702378830,0.60647414,119530.0,119520.0,0.18100999]
[1752702379232,0.60647414,119530.0,119520.0,0.34827589]
[1752702379437,0.60647414,119530.0,119520.0,0.37822746]
[1752702380534,0.43917224,119530.0,119520.0,0.37822746]
[1752702380741,0.60642414,119530.0,119520.0,0.27296839]
[1752702381142,0.2535619,119530.0,119520.0,0.27296839]
[1752702381436,0.60642414,119530.0,119520.0,0.27296839]
[1752702381640,1.21201394,119530.0,119520.0,0.27296839]
[1752702382438,0.57901394,119530.0,119520.0,0.27296839]
[1752702382739,1.23533394,119530.0,119520.0,0.27296839]
[1752702383433,0.002,119530.0,119520.0,0.27296839]
[1752702383649,0.36782675,119550.0,119540.0,0.2534777]
[1752702383650,0.58588109,119550.0,119540.0,0.2534777]
[1752702383834,1.21852109,119550.0,119540.0,0.34583829]
[1752702384141,1.21852109,119550.0,119540.0,0.33077848]
[1752702384442,1.21852109,119550.0,119540.0,0.27054134]
[1752702384844,0.61954109,119550.0,119540.0,0.27054134]
[1752702385146,1.25702109,119550.0,119540.0,0.27154134]
[1752702385339,0.62454109,119550.0,119540.0,0.27154134]
[1752702385532,0.62454109,119550.0,119540.0,0.27888666]
[1752702385735,1.30124109,119550.0,119540.0,0.27154134]
[1752702385942,1.30612109,119550.0,119540.0,0.27154134]
[1752702386151,1.30612109,119550.0,119540.0,0.10430364]
[1752702386447,0.95325885,119550.0,119540.0,0.07823809]
[1752702386637,1.30612109,119550.0,119540.0,0.07823809]
[1752702387837,1.30612109,119550.0,119540.0,0.01806364]
[1752702388146,1.30612109,119550.0,119540.0,0.09336059]
[1752702388948,1.30612109,119550.0,119540.0,0.01806364]
[1752702390456,0.95325885,119550.0,119540.0,0.18530134]
[1752702390758,1.30612109,119550.0,119540.0,0.18530134]
[1752702391059,1.30612109,119550.0,119540.0,0.27154134]
[1752702391753,0.43922739,119550.0,119540.0,0.27154134]
[1752702392153,1.23821119,119550.0,119540.0,0.27154134]
[1752702392360,0.62254119,119550.0,119540.0,0.34683829]
[1752702392655,1.25426119,119550.0,119540.0,0.34683829]
[1752702393060,1.27762119,119550.0,119540.0,0.34683829]
[1752702394063,1.30183119,119550.0,119540.0,0.34683829]
[1752702394354,1.30360119,119550.0,119540.0,0.34583829]
[1752702394551,1.30560119,119550.0,119540.0,0.34583829]
[1752702395251,0.95273895,119550.0,119540.0,0.34583829]
[1752702395456,1.30560119,119550.0,119540.0,0.27054134]
[1752702397052,1.27662119,119550.0,119540.0,0.27054134]
[1752702397457,0.94796895,119550.0,119540.0,0.27054134]
[1752702397662,0.66911119,119550.0,119540.0,0.27054134]
[1752702397855,1.30031119,119550.0,119540.0,0.27054134]
[1752702399760,0.95221895,119550.0,119540.0,0.27054134]
[1752702399959,1.30508119,119550.0,119540.0,0.27054134]
[1752702402259,1.13785739,119550.0,119540.0,0.27054134]
[1752702402862,1.13785739,119550.0,119540.0,0.34570578]
[1752702407162,0.78499515,119550.0,119540.0,0.34570578]
[1752702407457,1.13785739,119550.0,119540.0,0.34570578]
[1752702407657,1.30508099,119550.0,119540.0,0.34570578]
[1752702408058,0.95221875,119550.0,119540.0,0.34570578]
[1752702408258,1.30508099,119550.0,119540.0,0.34570578]
[1752702408961,0.67388099,119550.0,119540.0,0.34570578]
[1752702409162,1.30412099,119550.0,119540.0,0.34570578]
[1752702409356,1.30412099,119550.0,119540.0,0.27054134]
[1752702409857,1.13689739,119550.0,119540.0,0.34573092]
[1752702410064,1.13689739,119550.0,119540.0,0.27054134]
[1752702410258,1.30412099,119550.0,119540.0,0.37596616]
[1752702412165,1.23832584,119550.0,119540.0,0.37596616]
[1752702412465,1.16989584,119550.0,119540.0,0.37596616]
[1752702412659,1.22223584,119550.0,119540.0,0.37596616]
[1752702413058,1.16758584,119550.0,119540.0,0.37596616]
[1752702413260,1.15232584,119550.0,119540.0,0.37596616]
[1752702413456,1.03936515,119550.0,119540.0,0.27054134]
[1752702413663,0.76794291,119550.0,119540.0,0.27054134]
[1752702413865,1.12557515,119550.0,119540.0,0.27054134]
[1752702414266,0.77271291,119550.0,119540.0,0.27054134]
[1752702414460,1.12557515,119550.0,119540.0,0.27054134]
[1752702415366,1.23601584,119550.0,119540.0,0.27054134]
[1752702415764,0.60629584,119550.0,119540.0,0.27054134]
[1752702415973,1.23581584,119550.0,119540.0,0.37585719]
[1752702417073,1.14757565,119550.0,119540.0,0.37585719]
[1752702418463,0.98023205,119550.0,119540.0,0.64047924]
[1752702418771,0.98023205,119550.0,119540.0,0.27054134]
[1752702418963,0.98023205,119550.0,119540.0,0.53516339]
[1752702419971,0.92777205,119550.0,119540.0,0.53516339]
[1752702420159,1.4602089,119560.0,119550.0,0.2012736]
[1752702420369,2.566233,119560.0,119550.0,0.2534636]
[1752702420772,2.3629741,119560.0,119550.0,0.2534636]
[1752702420969,2.3677441,119560.0,119550.0,0.2534636]
[1752702421275,2.5349537,119560.0,119550.0,0.2534636]
[1752702421572,2.5369537,119560.0,119550.0,0.2534636]
[1752702421875,2.07614205,119560.0,119550.0,0.2534636]
[1752702422174,0.95297205,119560.0,119550.0,0.51808565]
[1752702422868,0.05923,119560.0,119550.0,0.51808565]
[1752702423067,1.06959143,119560.0,119550.0,0.2369836]
[1752702423262,1.06959143,119560.0,119550.0,0.2536136]
[1752702423464,0.71687,119560.0,119550.0,0.2536136]
[1752702425276,0.21673807,119570.0,119560.0,0.1672096]
[1752702425469,0.66172,119570.0,119560.0,0.5908747]
[1752702425667,0.66172,119570.0,119560.0,0.44716427]
[1752702425867,0.66172,119570.0,119560.0,0.45498847]
[1752702426071,0.66172,119570.0,119560.0,0.47900847]
[1752702426271,0.8289156,119570.0,119560.0,0.47900847]
[1752702426672,0.8289156,119570.0,119560.0,0.40379929]
[1752702426971,0.66172,119570.0,119560.0,0.40379929]
[1752702427177,0.66172,119570.0,119560.0,0.50911514]
[1752702427676,0.8309156,119570.0,119560.0,0.50129094]
[1752702427986,0.8309156,119570.0,119560.0,0.50906911]
[1752702428171,0.8530156,119570.0,119560.0,0.50906911]
[1752702428371,0.8530156,119570.0,119560.0,0.51006911]
[1752702428675,0.8815556,119570.0,119560.0,0.50229094]
[1752702428979,1.23427703,119570.0,119560.0,0.12315044]
[1752702429171,0.8815556,119570.0,119560.0,0.36050825]
[1752702429372,1.65154903,119570.0,119560.0,0.1432096]
[1752702429582,1.65154903,119570.0,119560.0,0.21835722]
[1752702430180,1.40154903,119570.0,119560.0,0.07514762]
[1752702430480,1.40154903,119570.0,119560.0,0.24235722]
[1752702431072,1.40154903,119570.0,119560.0,0.1672096]
[1752702431482,0.2067795,119560.0,119550.0,0.32616712]
[1752702431677,0.55950093,119560.0,119550.0,0.32596712]
[1752702431980,0.55950093,119560.0,119550.0,0.34998712]
[1752702432476,0.55950093,119560.0,119550.0,0.35472712]
[1752702433581,0.55950093,119560.0,119550.0,0.2795795]
[1752702434181,0.55950093,119560.0,119550.0,0.2815795]
[1752702434675,0.2067795,119560.0,119550.0,0.2815795]
[1752702434875,0.55950093,119560.0,119550.0,0.38689535]
[1752702435276,0.56050093,119560.0,119550.0,0.38489535]
[1752702435881,0.56050093,119560.0,119550.0,0.46007273]
[1752702436085,0.56050093,119560.0,119550.0,0.35475688]
[1752702436777,0.56050093,119560.0,119550.0,0.39657688]
[1752702436975,0.56050093,119560.0,119550.0,0.41252688]
[1752702437378,0.56050093,119560.0,119550.0,0.37915688]
[1752702437774,0.2077795,119560.0,119550.0,0.39657688]
[1752702437991,0.2077795,119560.0,119550.0,0.41252688]
[1752702438284,0.56050093,119560.0,119550.0,0.41252688]
[1752702438487,0.2077795,119560.0,119550.0,0.32891938]
[1752702438888,0.56050093,119560.0,119550.0,0.32891938]
[1752702439889,0.2077795,119560.0,119550.0,0.32891938]
[1752702440088,0.56050093,119560.0,119550.0,0.32891938]
[1752702440277,0.2077795,119560.0,119550.0,0.32891938]
[1752702440473,0.56050093,119560.0,119550.0,0.32891938]
[1752702441186,0.2077795,119560.0,119550.0,0.32891938]
[1752702441387,0.56050093,119560.0,119550.0,0.32891938]
[1752702441882,0.04057,119560.0,119550.0,0.32891938]
[1752702442080,0.39329143,119560.0,119550.0,0.32891938]
[1752702442282,0.04057,119560.0,119550.0,0.32891938]
[1752702442481,0.04057,119560.0,119550.0,0.68164081]
[1752702443089,0.04057,119560.0,119550.0,0.32891938]
[1752702443391,0.01647,119560.0,119550.0,0.32891938]
[1752702443587,0.01547,119560.0,119550.0,0.32891938]
[1752702445094,0.01547,119560.0,119550.0,0.253742]
[1752702445390,0.01547,119560.0,119550.0,0.35905785]
[1752702445793,1.23208393,119570.0,119560.0,0.2537396]
[1752702445989,1.19028453,119570.0,119560.0,0.34745456]
[1752702446190,1.21438453,119570.0,119560.0,0.34745456]
[1752702446994,1.22985453,119570.0,119560.0,0.34745456]
[1752702447194,0.66913,119570.0,119560.0,0.34745456]
[1752702447391,0.8363256,119570.0,119560.0,0.34745456]
[1752702447782,0.64503,119570.0,119560.0,0.34745456]
[1752702447983,1.02185143,119570.0,119560.0,0.27223537]
[1752702448184,0.66913,119570.0,119560.0,0.34744578]
[1752702448390,1.02185143,119570.0,119560.0,0.27223537]
[1752702448898,0.66913,119570.0,119560.0,0.27223537]
[1752702449092,1.02185143,119570.0,119560.0,0.27223537]
[1752702449397,0.66913,119570.0,119560.0,0.27223537]
[1752702449697,1.02185143,119570.0,119560.0,0.27223537]
[1752702450092,1.02085143,119570.0,119560.0,0.27223537]
[1752702454694,0.66813,119570.0,119560.0,0.27223537]
[1752702454892,1.02085143,119570.0,119560.0,0.34742858]
[1752702455695,1.02085143,119570.0,119560.0,0.45274443]
[1752702455998,1.02085143,119570.0,119560.0,0.45274308]
[1752702456199,1.02085143,119570.0,119560.0,0.34742723]
[1752702458501,1.02085143,119570.0,119560.0,0.27223537]
[1752702462002,1.02085143,119570.0,119560.0,0.37755122]
[1752702463000,0.93267433,119570.0,119560.0,0.37755122]
[1752702464208,0.66813,119570.0,119560.0,0.37755122]
[1752702464409,0.93267433,119570.0,119560.0,0.37755122]
[1752702464606,1.09987013,119570.0,119560.0,0.37755122]
[1752702465106,0.8353258,119570.0,119560.0,0.37755122]
[1752702465300,1.36441446,119570.0,119560.0,0.19901334]
[1752702465505,0.8353258,119570.0,119560.0,0.29102132]
[1752702465705,1.36441446,119570.0,119560.0,0.18570547]
[1752702466105,1.36441446,119570.0,119560.0,0.1672097]
[1752702467210,1.36441446,119570.0,119560.0,0.24241142]
[1752702467602,1.36741446,119570.0,119560.0,0.24241142]
[1752702468709,1.36741446,119570.0,119560.0,0.1672097]
[1752702468913,1.19115611,119570.0,119560.0,0.1672097]
[1752702469405,1.19115611,119570.0,119560.0,0.24241142]
[1752702470512,1.19115611,119570.0,119560.0,0.1672097]
[1752702473717,1.19115611,119570.0,119560.0,0.24241142]
[1752702474016,1.19115611,119570.0,119560.0,0.31257142]
[1752702475916,1.19115611,119570.0,119560.0,0.2373697]
[1752702478720,1.19115611,119570.0,119560.0,0.31257142]
[1752702480020,1.19115611,119570.0,119560.0,0.28732142]
[1752702480318,1.19115611,119570.0,119560.0,0.31013142]
[1752702484319,1.19115611,119570.0,119560.0,0.31105142]
[1752702484519,0.8383258,119570.0,119560.0,0.31105142]
[1752702484709,0.8383258,119570.0,119560.0,0.31349142]
[1752702484909,1.19115611,119570.0,119560.0,0.2382897]
[1752702485419,1.19115611,119570.0,119560.0,0.2533497]
[1752702485618,1.19115611,119570.0,119560.0,0.32856619]
[1752702486823,0.56259611,119570.0,119560.0,0.32856619]
[1752702487021,0.8336858,119570.0,119560.0,0.32856619]
[1752702487222,0.8336858,119570.0,119560.0,0.35866555]
[1752702488024,0.64223,119570.0,119560.0,0.60618001]
[1752702488324,0.64023,119570.0,119560.0,0.60618001]
[1752702488623,0.64023,119570.0,119560.0,0.35866555]
[1752702488816,0.62476,119570.0,119560.0,0.35866555]
[1752702489017,0.7919557,119570.0,119560.0,0.35866555]
[1752702489322,0.7909157,119570.0,119560.0,0.35866555]
[1752702490922,0.7909157,119570.0,119560.0,0.2533497]
[1752702493015,0.8064357,119570.0,119560.0,0.2533497]
[1752702495825,0.8291057,119570.0,119560.0,0.2533497]
[1752702496927,1.09362874,119570.0,119560.0,0.51787274]
[1752702497825,1.09362874,119570.0,119560.0,0.2382897]
[1752702498029,1.09362874,119570.0,119560.0,0.31349734]
[1752702498336,1.09362874,119570.0,119560.0,0.32855734]
[1752702498822,1.09362874,119570.0,119560.0,0.2533497]
[1752702500129,1.09462874,119570.0,119560.0,0.2533497]
[1752702500931,1.18285063,119570.0,119560.0,0.2533497]
[1752702501425,1.01565493,119570.0,119560.0,0.2533497]
[1752702501730,0.66291,119570.0,119560.0,0.2533497]
[1752702501931,1.01565493,119570.0,119560.0,0.2533497]
[1752702502231,1.18285073,119570.0,119560.0,0.2533497]
[1752702506135,1.18285073,119570.0,119560.0,0.35866555]
[1752702507635,1.18285073,119570.0,119560.0,0.2533497]
[1752702507834,0.8301058,119570.0,119560.0,0.2533497]
[1752702508033,1.18285073,119570.0,119560.0,0.2533497]
[1752702508840,0.8301058,119570.0,119560.0,0.2533497]
[1752702509028,1.18285073,119570.0,119560.0,0.2533497]
[1752702509835,0.8301058,119570.0,119560.0,0.2533497]
[1752702510029,1.18285073,119570.0,119560.0,0.2533497]
[1752702511340,1.18285073,119570.0,119560.0,0.32856592]
[1752702511938,1.18285073,119570.0,119560.0,0.32857059]
[1752702512139,1.18285073,119570.0,119560.0,0.2533497]
[1752702512328,1.18285073,119570.0,119560.0,0.32857061]
[1752702512532,1.18285073,119570.0,119560.0,0.2533497]
[1752702512732,0.8301058,119570.0,119560.0,0.32857631]
[1752702512928,0.8280658,119570.0,119560.0,0.32857631]
[1752702513139,0.8280258,119570.0,119560.0,0.32857631]
[1752702513340,1.18077073,119570.0,119560.0,0.32857631]
[1752702513540,0.8280258,119570.0,119560.0,0.32857631]
[1752702513740,1.18077073,119570.0,119560.0,0.32857631]
[1752702514741,1.18077073,119570.0,119560.0,0.328593]
[1752702515534,1.18077073,119570.0,119560.0,0.2533497]
[1752702515736,1.18077073,119570.0,119560.0,0.35866555]
[1752702516141,1.18077073,119570.0,119560.0,0.2533497]
[1752702517545,0.8280258,119570.0,119560.0,0.2533497]
[1752702519038,0.8280258,119570.0,119560.0,0.35866555]
[1752702520248,1.18077073,119570.0,119560.0,0.35866555]
[1752702520542,1.18077073,119570.0,119560.0,0.27252555]
[1752702520737,1.34804273,119570.0,119560.0,0.27252555]
[1752702521348,1.34804273,119570.0,119560.0,0.24249963]
[1752702522348,1.18077073,119570.0,119560.0,0.24249963]
[1752702522552,1.34804273,119570.0,119560.0,0.24249963]
[1752702522754,1.18077073,119570.0,119560.0,0.24249963]
[1752702522946,1.35725638,119570.0,119560.0,0.24249963]